Workbook

Sheet Calculate Bachelor Tuition
A1: Applied Baccalaureate Tuition Calculator | C1: =COUNT('S&A Fees'!B5:'S&A Fees'!B29) -> 0 | D1: FALSE
A2: for Academic Year 2025-26
A4: How to charge tuition:
A5: Usually, a student is charged lower division rates for lower division courses and upper division rates for upper division courses. Under certain upper/lower division credit load combinations, this would result in a student paying more than if the student were charged for all credits based only on the upper division schedule. When this combination occurs, a student should should be charged for all credits based on the upper division schedule.
A6: Use this calculator to determine whether to use both upper and lower division tuition schedules, or just upper division tuition schedules.
A8: My college uses the SBCTC Tuition Schedule S&A fees values: | B8: If your S&A fees are the same as the SBCTC schedule, check the box to the left. If your S&A fees vary from the schedule, leave the box to the left unchecked and enter the S&A fees into column B of the "S&A Fees" worksheet.
A10: My college waives all the Op Fee Differential for Non-Residents | B10: If your college waives ALL the NR Op Fee Differential, then check the box. If you use the standard NR Op Fee rates, then leave the box unchecked.
A12: Select Resident or Non-Resident Tuition: | G12: Resident Lookup | H12: 1
A13: Enter the Number of Lower Division Credits: | G13: Named ranges: | H13: =IF(H12=1,"LowerDivision","LowerNonRes") -> LowerDivision
A14: Enter the Number of Upper Division Credits: | H14: =IF(H12=1,"UpperDivision","UpperNonRes" ) -> UpperDivision
G15: SBCTC S&A Fees | H15: TRUE
A16: How to Charge This Student:
A17: If the student was charged a combination of lower and upper division tuition, they would pay: | B17: =E25 -> 0
A18: If the student was charged only upper division tuition, they would pay: | B18: =E27 -> 0
A19: Therefore, the correct method of tuition calculation is: | B19: =IF(B18+B17=0,"",IF(B18<B17,"Upper Division Only", IF(B13=0,"Upper Division Only", IF(B14=0,"Lower Division Only",IF(LowerDivCredits>0,"A combination of lower and upper division tuition."))))) -> 
A20: Rate changes required? | B20: =IF(UpperDivCredits>0,IF(LowerDivCredits>0, IF(B19="Upper Division Only",IF(H12=1,"Lower Division courses should be charged at Upper Division rates.","Lower Division courses should be charged at Upper Division rates."),"No"),"No"),"") -> 
A22: Here are the calculations: | B22: Operating Fee | C22: Building Fees | D22: S&A Fees | E22: Total
A23: Lower Division Tutition: | B23: =IF(ISNA(VLOOKUP(LowerDivCredits,INDIRECT($H$13),2,FALSE)),0,VLOOKUP(LowerDivCredits,INDIRECT($H$13),2,FALSE)) -> 0 | C23: =IF(ISNA(VLOOKUP(LowerDivCredits,INDIRECT($H$13),3,FALSE)),0,VLOOKUP(LowerDivCredits,INDIRECT($H$13),3,FALSE)) -> 0 | D23: =IF(ISNA(VLOOKUP(LowerDivCredits,INDIRECT($H$13),4,FALSE)),0,VLOOKUP(LowerDivCredits,INDIRECT($H$13),4,FALSE)) -> 0 | E23: =SUM(B23:D23) -> 0
A24: Upper Division Tuition: | B24: =IF(ISNA(VLOOKUP(UpperDivCredits,INDIRECT($H$14), 2, FALSE)),0,VLOOKUP(UpperDivCredits, INDIRECT($H$14), 2, FALSE)) -> 0 | C24: =IF(ISNA(VLOOKUP( UpperDivCredits, INDIRECT($H$14), 3, FALSE)),0,VLOOKUP(UpperDivCredits, INDIRECT($H$14), 3, FALSE)) -> 0 | D24: =IF(ISNA(VLOOKUP( UpperDivCredits, INDIRECT($H$14), 4, FALSE)),0,VLOOKUP(UpperDivCredits, INDIRECT($H$14), 4, FALSE)) -> 0 | E24: =SUM(B24:D24) -> 0
A25: Total: | B25: =SUM(B23:B24) -> 0 | C25: =SUM(C23:C24) -> 0 | D25: =SUM(D23:D24) -> 0 | E25: =SUM(B25:D25) -> 0
A27: Max Tuition Allowable: | B27: =IF(ISNA(VLOOKUP(LowerDivCredits + UpperDivCredits, INDIRECT($H$14), 2, FALSE)),0,VLOOKUP(LowerDivCredits + UpperDivCredits, INDIRECT($H$14),2, FALSE)) -> 0 | C27: =IF(ISNA(VLOOKUP(LowerDivCredits + UpperDivCredits, INDIRECT($H$14), 3, FALSE)),0,VLOOKUP(LowerDivCredits + UpperDivCredits, INDIRECT($H$14), 3, FALSE)) -> 0 | D27: =IF(ISNA(VLOOKUP(LowerDivCredits + UpperDivCredits, INDIRECT($H$14), 4, FALSE)),0,VLOOKUP(LowerDivCredits + UpperDivCredits, INDIRECT($H$14), 4, FALSE)) -> 0 | E27: =IF(ISNA(VLOOKUP(LowerDivCredits + UpperDivCredits, INDIRECT($H$14), 5, FALSE)),0,VLOOKUP(LowerDivCredits + UpperDivCredits, INDIRECT($H$14), 5, FALSE)) -> 0
A29: Amount over/under the maximum allowed | B29: =B25-B27 -> 0 | C29: =C25-C27 -> 0 | D29: =D25-D27 -> 0 | E29: =E25-E27 -> 0

Sheet S&A Fees
A2: S&A Fees (your college) | E2: SBCTC S&A Fees
A3: For Academic Year 2025-26 | E3: For Academic Year 2025-26
A4: CR | B4: S&A | E4: CR | F4: S&A
A5: 1 | E5: 1 | F5: 13.57 | H5: =E5*13.57 -> 13.57
A6: 2 | E6: 2 | F6: 27.14 | H6: =E6*13.57 -> 27.14
A7: 3 | E7: 3 | F7: 40.71 | H7: 40.71
A8: 4 | E8: 4 | F8: 54.28 | H8: 54.28
A9: 5 | E9: 5 | F9: 67.85 | H9: 67.85
A10: 6 | E10: 6 | F10: 81.42 | H10: 81.42
A11: =+A10+1 -> 7 | E11: =+E10+1 -> 7 | F11: 94.99 | H11: 94.99
A12: =+A11+1 -> 8 | E12: =+E11+1 -> 8 | F12: 108.56 | H12: 108.56
A13: 9 | E13: 9 | F13: 122.13 | H13: 122.13
A14: 10 | E14: 10 | F14: 135.7 | H14: 135.7
A15: 11 | E15: 11 | F15: 143.55 | H15: =135.7+(E15-10)*7.85 -> 143.55
A16: 12 | E16: 12 | F16: 151.4 | H16: =135.7+(E16-10)*7.85 -> 151.4
A17: 13 | E17: 13 | F17: 159.25 | H17: 159.25
A18: 14 | E18: 14 | F18: 167.1 | H18: 167.1
A19: 15 | E19: 15 | F19: 174.95 | H19: 174.95
A20: 16 | E20: 16 | F20: 182.8 | H20: 182.8
A21: 17 | E21: 17 | F21: 190.65 | H21: 190.65
A22: 18 | E22: 18 | F22: 198.5 | H22: 198.5
A23: 19 | E23: 19 | F23: 198.5 | H23: 198.5
A24: 20 | E24: 20 | F24: 198.5 | H24: 198.5
A25: 21 | E25: 21 | F25: 198.5 | H25: 198.5
A26: 22 | E26: 22 | F26: 198.5 | H26: 198.5
A27: 23 | E27: 23 | F27: 198.5 | H27: 198.5
A28: 24 | E28: 24 | F28: 198.5 | H28: 198.5
A29: 25 | E29: 25 | F29: 198.5 | H29: 198.5

Sheet 2025-26 Tuition Schedule
A1: Washington State Community Colleges | K1: Washington State Community Colleges
A2: Lower Division | K2: Upper Division
A3: 2024-25 Tuition Schedule | K3: 2025-26 Tuition Schedule
A4: (per quarter) | K4: (per quarter)
V5: Lower | W5: Division | Y5: Upper | Z5: Division
B6: FY2025-26 Resident | G6: FY2025-26 Nonresident | L6: FY2025-26 Resident | Q6: FY2025-26 Nonresident | V6: NR | W6: NR | Y6: NR | Z6: NR
A7: Credits | B7: Operating Fee | C7: Building Fee | D7: Maximum S&A Fee | E7: Tuition and Fees | G7: Operating Fee | H7: Building Fee | I7: Maximum S&A Fee | J7: Tuition and Fees | K7: Credits | L7: Operating Fee | M7: Building Fee | N7: Maximum S&A Fee | O7: Tuition and Fees | Q7: Operating Fee | R7: Building Fee | S7: Maximum S&A Fee | T7: Tuition and Fees | V7: Op Fee Waiver | W7: Op Fee Standard | Y7: Op Fee Waiver | Z7: Op Fee Standard
A8: 1 | B8: 102.95 | C8: 15.44 | D8: ='S&A Fees'!$B5 -> 0 | E8: =SUM(B8:D8) -> 118.39 | F8: 1 | G8: 291.31 | H8: 34.42 | I8: ='S&A Fees'!$B5 -> 0 | J8: =SUM(G8:I8) -> 325.73 | K8: 1 | L8: 226.93 | M8: 15.44 | N8: ='S&A Fees'!$B5 -> 0 | O8: =SUM(L8:N8) -> 242.37 | P8: 1 | Q8: 670.89 | R8: 34.42 | S8: ='S&A Fees'!$B5 -> 0 | T8: =SUM(Q8:S8) -> 705.31 | V8: 102.95 | W8: 291.31 | X8: 1 | Y8: 226.93 | Z8: 670.89
A9: 2 | B9: 205.9 | C9: 30.88 | D9: ='S&A Fees'!$B6 -> 0 | E9: =SUM(B9:D9) -> 236.78 | F9: 2 | G9: 582.62 | H9: 68.84 | I9: ='S&A Fees'!$B6 -> 0 | J9: =SUM(G9:I9) -> 651.46 | K9: 2 | L9: 453.86 | M9: 30.88 | N9: ='S&A Fees'!$B6 -> 0 | O9: =SUM(L9:N9) -> 484.74 | P9: 2 | Q9: 1341.78 | R9: 68.84 | S9: ='S&A Fees'!$B6 -> 0 | T9: =SUM(Q9:S9) -> 1410.62 | V9: 205.9 | W9: 582.62 | X9: 2 | Y9: 453.86 | Z9: 1341.78
A10: 3 | B10: 308.85 | C10: 46.32 | D10: ='S&A Fees'!$B7 -> 0 | E10: 355.17 | F10: 3 | G10: 873.93 | H10: 103.26 | I10: ='S&A Fees'!$B7 -> 0 | J10: 977.19 | K10: 3 | L10: 680.79 | M10: 46.32 | N10: ='S&A Fees'!$B7 -> 0 | O10: 727.11 | P10: 3 | Q10: 2012.67 | R10: 103.26 | S10: ='S&A Fees'!$B7 -> 0 | T10: 2115.93 | V10: 308.85 | W10: 873.93 | X10: 3 | Y10: 680.79 | Z10: 2012.67
A11: 4 | B11: 411.8 | C11: 61.76 | D11: ='S&A Fees'!$B8 -> 0 | E11: 473.56 | F11: 4 | G11: 1165.24 | H11: 137.68 | I11: ='S&A Fees'!$B8 -> 0 | J11: 1302.92 | K11: 4 | L11: 907.72 | M11: 61.76 | N11: ='S&A Fees'!$B8 -> 0 | O11: 969.48 | P11: 4 | Q11: 2683.56 | R11: 137.68 | S11: ='S&A Fees'!$B8 -> 0 | T11: 2821.24 | V11: 411.8 | W11: 1165.24 | X11: 4 | Y11: 907.72 | Z11: 2683.56
A12: 5 | B12: 514.75 | C12: 77.2 | D12: ='S&A Fees'!$B9 -> 0 | E12: 591.95 | F12: 5 | G12: 1456.55 | H12: 172.1 | I12: ='S&A Fees'!$B9 -> 0 | J12: 1628.65 | K12: 5 | L12: 1134.65 | M12: 77.2 | N12: ='S&A Fees'!$B9 -> 0 | O12: 1211.85 | P12: 5 | Q12: 3354.45 | R12: 172.1 | S12: ='S&A Fees'!$B9 -> 0 | T12: 3526.55 | V12: 514.75 | W12: 1456.55 | X12: 5 | Y12: 1134.65 | Z12: 3354.45
A13: 6 | B13: 617.7 | C13: 92.64 | D13: ='S&A Fees'!$B10 -> 0 | E13: 710.34 | F13: 6 | G13: 1747.86 | H13: 206.52 | I13: ='S&A Fees'!$B10 -> 0 | J13: 1954.38 | K13: 6 | L13: 1361.58 | M13: 92.64 | N13: ='S&A Fees'!$B10 -> 0 | O13: 1454.22 | P13: 6 | Q13: 4025.34 | R13: 206.52 | S13: ='S&A Fees'!$B10 -> 0 | T13: 4231.86 | V13: 617.7 | W13: 1747.86 | X13: 6 | Y13: 1361.58 | Z13: 4025.34
A14: 7 | B14: 720.65 | C14: 108.08 | D14: ='S&A Fees'!$B11 -> 0 | E14: 828.73 | F14: 7 | G14: 2039.17 | H14: 240.94 | I14: ='S&A Fees'!$B11 -> 0 | J14: 2280.11 | K14: 7 | L14: 1588.51 | M14: 108.08 | N14: ='S&A Fees'!$B11 -> 0 | O14: 1696.59 | P14: 7 | Q14: 4696.23 | R14: 240.94 | S14: ='S&A Fees'!$B11 -> 0 | T14: 4937.17 | V14: 720.65 | W14: 2039.17 | X14: 7 | Y14: 1588.51 | Z14: 4696.23
A15: 8 | B15: 823.6 | C15: 123.52 | D15: ='S&A Fees'!$B12 -> 0 | E15: 947.12 | F15: 8 | G15: 2330.48 | H15: 275.36 | I15: ='S&A Fees'!$B12 -> 0 | J15: 2605.84 | K15: 8 | L15: 1815.44 | M15: 123.52 | N15: ='S&A Fees'!$B12 -> 0 | O15: 1938.96 | P15: 8 | Q15: 5367.12 | R15: 275.36 | S15: ='S&A Fees'!$B12 -> 0 | T15: 5642.48 | V15: 823.6 | W15: 2330.48 | X15: 8 | Y15: 1815.44 | Z15: 5367.12
A16: 9 | B16: 926.55 | C16: 138.96 | D16: ='S&A Fees'!$B13 -> 0 | E16: 1065.51 | F16: 9 | G16: 2621.79 | H16: 309.78 | I16: ='S&A Fees'!$B13 -> 0 | J16: 2931.57 | K16: 9 | L16: 2042.37 | M16: 138.96 | N16: ='S&A Fees'!$B13 -> 0 | O16: 2181.33 | P16: 9 | Q16: 6038.01 | R16: 309.78 | S16: ='S&A Fees'!$B13 -> 0 | T16: 6347.79 | V16: 926.55 | W16: 2621.79 | X16: 9 | Y16: 2042.37 | Z16: 6038.01
A17: 10 | B17: 1029.5 | C17: 154.4 | D17: ='S&A Fees'!$B14 -> 0 | E17: 1183.9 | F17: 10 | G17: 2913.1 | H17: 344.2 | I17: ='S&A Fees'!$B14 -> 0 | J17: 3257.3 | K17: 10 | L17: 2269.3 | M17: 154.4 | N17: ='S&A Fees'!$B14 -> 0 | O17: 2423.7 | P17: 10 | Q17: 6708.9 | R17: 344.2 | S17: ='S&A Fees'!$B14 -> 0 | T17: 7053.1 | V17: 1029.5 | W17: 2913.1 | X17: 10 | Y17: 2269.3 | Z17: 6708.9
A18: 11 | B18: 1081.3 | C18: 159.84 | D18: ='S&A Fees'!$B15 -> 0 | E18: 1241.14 | F18: 11 | G18: 2972.37 | H18: 350.65 | I18: ='S&A Fees'!$B15 -> 0 | J18: 3323.02 | K18: 11 | L18: 2269.3 | M18: 159.84 | N18: ='S&A Fees'!$B15 -> 0 | O18: 2429.14 | P18: 11 | Q18: 6708.9 | R18: 350.65 | S18: ='S&A Fees'!$B15 -> 0 | T18: 7059.55 | V18: 1081.3 | W18: 2972.37 | X18: 11 | Y18: 2269.3 | Z18: 6708.9
A19: 12 | B19: 1133.1 | C19: 165.28 | D19: ='S&A Fees'!$B16 -> 0 | E19: 1298.38 | F19: 12 | G19: 3031.64 | H19: 357.1 | I19: ='S&A Fees'!$B16 -> 0 | J19: 3388.74 | K19: 12 | L19: 2269.3 | M19: 165.28 | N19: ='S&A Fees'!$B16 -> 0 | O19: 2434.58 | P19: 12 | Q19: 6708.9 | R19: 357.1 | S19: ='S&A Fees'!$B16 -> 0 | T19: 7066 | V19: 1133.1 | W19: 3031.64 | X19: 12 | Y19: 2269.3 | Z19: 6708.9
A20: 13 | B20: 1184.9 | C20: 170.72 | D20: ='S&A Fees'!$B17 -> 0 | E20: 1355.62 | F20: 13 | G20: 3090.91 | H20: 363.55 | I20: ='S&A Fees'!$B17 -> 0 | J20: 3454.46 | K20: 13 | L20: 2269.3 | M20: 170.72 | N20: ='S&A Fees'!$B17 -> 0 | O20: 2440.02 | P20: 13 | Q20: 6708.9 | R20: 363.55 | S20: ='S&A Fees'!$B17 -> 0 | T20: 7072.45 | V20: 1184.9 | W20: 3090.91 | X20: 13 | Y20: 2269.3 | Z20: 6708.9
A21: 14 | B21: 1236.7 | C21: 176.16 | D21: ='S&A Fees'!$B18 -> 0 | E21: 1412.86 | F21: 14 | G21: 3150.18 | H21: 370 | I21: ='S&A Fees'!$B18 -> 0 | J21: 3520.18 | K21: 14 | L21: 2269.3 | M21: 176.16 | N21: ='S&A Fees'!$B18 -> 0 | O21: 2445.46 | P21: 14 | Q21: 6708.9 | R21: 370 | S21: ='S&A Fees'!$B18 -> 0 | T21: 7078.9 | V21: 1236.7 | W21: 3150.18 | X21: 14 | Y21: 2269.3 | Z21: 6708.9
A22: 15 | B22: 1288.5 | C22: 181.6 | D22: ='S&A Fees'!$B19 -> 0 | E22: 1470.1 | F22: 15 | G22: 3209.45 | H22: 376.45 | I22: ='S&A Fees'!$B19 -> 0 | J22: 3585.9 | K22: 15 | L22: 2269.3 | M22: 181.6 | N22: ='S&A Fees'!$B19 -> 0 | O22: 2450.9 | P22: 15 | Q22: 6708.9 | R22: 376.45 | S22: ='S&A Fees'!$B19 -> 0 | T22: 7085.35 | V22: 1288.5 | W22: 3209.45 | X22: 15 | Y22: 2269.3 | Z22: 6708.9
A23: 16 | B23: 1340.3 | C23: 187.04 | D23: ='S&A Fees'!$B20 -> 0 | E23: 1527.34 | F23: 16 | G23: 3268.72 | H23: 382.9 | I23: ='S&A Fees'!$B20 -> 0 | J23: 3651.62 | K23: 16 | L23: 2269.3 | M23: 187.04 | N23: ='S&A Fees'!$B20 -> 0 | O23: 2456.34 | P23: 16 | Q23: 6708.9 | R23: 382.9 | S23: ='S&A Fees'!$B20 -> 0 | T23: 7091.8 | V23: 1340.3 | W23: 3268.72 | X23: 16 | Y23: 2269.3 | Z23: 6708.9
A24: 17 | B24: 1392.1 | C24: 192.48 | D24: ='S&A Fees'!$B21 -> 0 | E24: 1584.58 | F24: 17 | G24: 3327.99 | H24: 389.35 | I24: ='S&A Fees'!$B21 -> 0 | J24: 3717.34 | K24: 17 | L24: 2269.3 | M24: 192.48 | N24: ='S&A Fees'!$B21 -> 0 | O24: 2461.78 | P24: 17 | Q24: 6708.9 | R24: 389.35 | S24: ='S&A Fees'!$B21 -> 0 | T24: 7098.25 | V24: 1392.1 | W24: 3327.99 | X24: 17 | Y24: 2269.3 | Z24: 6708.9
A25: 18 | B25: 1443.9 | C25: 197.92 | D25: ='S&A Fees'!$B22 -> 0 | E25: 1641.82 | F25: 18 | G25: 3387.26 | H25: 395.8 | I25: ='S&A Fees'!$B22 -> 0 | J25: 3783.06 | K25: 18 | L25: 2269.3 | M25: 197.92 | N25: ='S&A Fees'!$B22 -> 0 | O25: 2467.22 | P25: 18 | Q25: 6708.9 | R25: 395.8 | S25: ='S&A Fees'!$B22 -> 0 | T25: 7104.7 | V25: 1443.9 | W25: 3387.26 | X25: 18 | Y25: 2269.3 | Z25: 6708.9
A26: 19 | B26: 1562.29 | C26: 197.92 | D26: ='S&A Fees'!$B23 -> 0 | E26: 1760.21 | F26: 19 | G26: 3712.99 | H26: 395.8 | I26: ='S&A Fees'!$B23 -> 0 | J26: 4108.79 | K26: 19 | L26: 2511.67 | M26: 197.92 | N26: ='S&A Fees'!$B23 -> 0 | O26: 2709.59 | P26: 19 | Q26: 7414.21 | R26: 395.8 | S26: ='S&A Fees'!$B23 -> 0 | T26: 7810.01 | V26: 1562.29 | W26: 3712.99 | X26: 19 | Y26: 2511.67 | Z26: 7414.21
A27: 20 | B27: 1680.68 | C27: 197.92 | D27: ='S&A Fees'!$B24 -> 0 | E27: 1878.6 | F27: 20 | G27: 4038.72 | H27: 395.8 | I27: ='S&A Fees'!$B24 -> 0 | J27: 4434.52 | K27: 20 | L27: 2754.04 | M27: 197.92 | N27: ='S&A Fees'!$B24 -> 0 | O27: 2951.96 | P27: 20 | Q27: 8119.52 | R27: 395.8 | S27: ='S&A Fees'!$B24 -> 0 | T27: 8515.32 | V27: 1680.68 | W27: 4038.72 | X27: 20 | Y27: 2754.04 | Z27: 8119.52
A28: 21 | B28: 1799.07 | C28: 197.92 | D28: ='S&A Fees'!$B25 -> 0 | E28: 1996.99 | F28: 21 | G28: 4364.45 | H28: 395.8 | I28: ='S&A Fees'!$B25 -> 0 | J28: 4760.25 | K28: 21 | L28: 2996.41 | M28: 197.92 | N28: ='S&A Fees'!$B25 -> 0 | O28: 3194.33 | P28: 21 | Q28: 8824.83 | R28: 395.8 | S28: ='S&A Fees'!$B25 -> 0 | T28: 9220.63 | V28: 1799.07 | W28: 4364.45 | X28: 21 | Y28: 2996.41 | Z28: 8824.83
A29: 22 | B29: 1917.46 | C29: 197.92 | D29: ='S&A Fees'!$B26 -> 0 | E29: 2115.38 | F29: 22 | G29: 4690.18 | H29: 395.8 | I29: ='S&A Fees'!$B26 -> 0 | J29: 5085.98 | K29: 22 | L29: 3238.78 | M29: 197.92 | N29: ='S&A Fees'!$B26 -> 0 | O29: 3436.7 | P29: 22 | Q29: 9530.14 | R29: 395.8 | S29: ='S&A Fees'!$B26 -> 0 | T29: 9925.94 | V29: 1917.46 | W29: 4690.18 | X29: 22 | Y29: 3238.78 | Z29: 9530.14
A30: 23 | B30: 2035.85 | C30: 197.92 | D30: ='S&A Fees'!$B27 -> 0 | E30: 2233.77 | F30: 23 | G30: 5015.91 | H30: 395.8 | I30: ='S&A Fees'!$B27 -> 0 | J30: 5411.71 | K30: 23 | L30: 3481.15 | M30: 197.92 | N30: ='S&A Fees'!$B27 -> 0 | O30: 3679.07 | P30: 23 | Q30: 10235.45 | R30: 395.8 | S30: ='S&A Fees'!$B27 -> 0 | T30: 10631.25 | V30: 2035.85 | W30: 5015.91 | X30: 23 | Y30: 3481.15 | Z30: 10235.45
A31: 24 | B31: 2154.24 | C31: 197.92 | D31: ='S&A Fees'!$B28 -> 0 | E31: 2352.16 | F31: 24 | G31: 5341.64 | H31: 395.8 | I31: ='S&A Fees'!$B28 -> 0 | J31: 5737.44 | K31: 24 | L31: 3723.52 | M31: 197.92 | N31: ='S&A Fees'!$B28 -> 0 | O31: 3921.44 | P31: 24 | Q31: 10940.76 | R31: 395.8 | S31: ='S&A Fees'!$B28 -> 0 | T31: 11336.56 | V31: 2154.24 | W31: 5341.64 | X31: 24 | Y31: 3723.52 | Z31: 10940.76
A32: 25 | B32: 2272.63 | C32: 197.92 | D32: ='S&A Fees'!$B29 -> 0 | E32: 2470.55 | F32: 25 | G32: 5667.37 | H32: 395.8 | I32: ='S&A Fees'!$B29 -> 0 | J32: 6063.17 | K32: 25 | L32: 3965.89 | M32: 197.92 | N32: ='S&A Fees'!$B29 -> 0 | O32: 4163.81 | P32: 25 | Q32: 11646.07 | R32: 395.8 | S32: ='S&A Fees'!$B29 -> 0 | T32: 12041.87 | V32: 2272.63 | W32: 5667.37 | X32: 25 | Y32: 3965.89 | Z32: 11646.07

Sheet lookups (hidden)
A1: Code | B1: AYR | C1: Abbreviated
A2: 1 | B2: 2010-11 | C2: 1011
A3: 2 | B3: 2011-12 | C3: 1112
A4: 3 | B4: 2012-13 | C4: 1213
A6: Code | B6: Type | C6: Abbreviated
A7: 1 | B7: Resident | C7: Res
A8: 2 | B8: Non-Resident | C8: NonRes
